[Event "Titled Tuesday Blitz February 22 Early 2022"]
[White "Urazayev, Arystanbek"]
[Black "Vlassov, Nikolai"]
[WhiteFideId "13709810"]
[BlackFideId "4103360"]
[WhiteElo "2321"]
[BlackElo "2407"]
[Result "1/2-1/2"]
[Round "08"]
[TimeControl "180+1"]
[Date "2022.02.22"]
[WhiteClock "0:00:05"]
[BlackClock "0:00:02"]

1. e4 {[%clk 0:03:00]}  Nc6 {[%clk 0:02:58]} 2. Nf3 {[%clk 0:03:01]}  d5 {[%clk 0:02:59]} 3. exd5 {[%clk 0:03:01]}  Qxd5 {[%clk 0:02:59]} 4. Nc3 {[%clk 0:03:01]}  Qa5 {[%clk 0:03:00]} 5. Bc4 {[%clk 0:03:02]}  Bg4 {[%clk 0:02:59]} 6. h3 {[%clk 0:03:00]}  Bh5 {[%clk 0:02:59]} 7. d3 {[%clk 0:03:00]}  O-O-O {[%clk 0:02:59]} 8. Bd2 {[%clk 0:02:59]}  Nf6 {[%clk 0:02:58]} 9. Nd5 {[%clk 0:02:52]}  Qc5 {[%clk 0:02:57]} 10. Be3 {[%clk 0:02:31]}  Qd6 {[%clk 0:02:56]} 11. Nxf6 {[%clk 0:02:28]}  gxf6 {[%clk 0:02:51]} 12. g4 {[%clk 0:02:27]}  Bg6 {[%clk 0:02:51]} 13. Qe2 {[%clk 0:02:28]}  Na5 {[%clk 0:02:41]} 14. Bb3 {[%clk 0:02:26]}  h5 {[%clk 0:02:32]} 15. O-O-O {[%clk 0:02:18]}  Nxb3+ {[%clk 0:02:28]} 16. axb3 {[%clk 0:02:19]}  e5 {[%clk 0:02:12]} 17. Nh4 {[%clk 0:02:18]}  hxg4 {[%clk 0:02:07]} 18. Nxg6 {[%clk 0:02:18]}  fxg6 {[%clk 0:02:05]} 19. hxg4 {[%clk 0:02:18]}  Bg7 {[%clk 0:01:49]} 20. Qf3 {[%clk 0:02:12]}  Qa6 {[%clk 0:01:35]} 21. Kb1 {[%clk 0:02:10]}  Qe6 {[%clk 0:01:20]} 22. Rdg1 {[%clk 0:01:50]}  a6 {[%clk 0:01:19]} 23. b4 {[%clk 0:01:43]}  c6 {[%clk 0:01:18]} 24. Bb6 {[%clk 0:01:39]}  Rxh1 {[%clk 0:01:15]} 25. Rxh1 {[%clk 0:01:34]}  Rh8 {[%clk 0:01:16]} 26. Rxh8+ {[%clk 0:01:34]}  Bxh8 {[%clk 0:01:17]} 27. Qh3 {[%clk 0:01:35]}  Bg7 {[%clk 0:01:12]} 28. f3 {[%clk 0:01:29]}  Kd7 {[%clk 0:01:09]} 29. Bc5 {[%clk 0:01:21]}  f5 {[%clk 0:01:01]} 30. gxf5 {[%clk 0:01:16]}  gxf5 {[%clk 0:01:01]} 31. c4 {[%clk 0:01:04]}  Qf6 {[%clk 0:00:57]} 32. Qg2 {[%clk 0:00:54]}  Ke6 {[%clk 0:00:52]} 33. Ka2 {[%clk 0:00:52]}  Kf7 {[%clk 0:00:51]} 34. Qh2 {[%clk 0:00:48]}  b5 {[%clk 0:00:45]} 35. Qc2 {[%clk 0:00:44]}  Qe6 {[%clk 0:00:37]} 36. Kb1 {[%clk 0:00:29]}  bxc4 {[%clk 0:00:34]} 37. dxc4 {[%clk 0:00:30]}  e4 {[%clk 0:00:35]} 38. fxe4 {[%clk 0:00:31]}  Qxe4 {[%clk 0:00:32]} 39. Qxe4 {[%clk 0:00:30]}  fxe4 {[%clk 0:00:32]} 40. Kc2 {[%clk 0:00:31]}  Ke6 {[%clk 0:00:33]} 41. b3 {[%clk 0:00:27]}  Kf5 {[%clk 0:00:32]} 42. Kd2 {[%clk 0:00:28]}  Kf4 {[%clk 0:00:32]} 43. Ke2 {[%clk 0:00:28]}  Bc3 {[%clk 0:00:29]} 44. Bd6+ {[%clk 0:00:28]}  Kf5 {[%clk 0:00:29]} 45. Bc5 {[%clk 0:00:28]}  Ke5 {[%clk 0:00:29]} 46. Ke3 {[%clk 0:00:27]}  Bb2 {[%clk 0:00:27]} 47. Bb6 {[%clk 0:00:26]}  Bc1+ {[%clk 0:00:27]} 48. Ke2 {[%clk 0:00:26]}  Bb2 {[%clk 0:00:26]} 49. Ke3 {[%clk 0:00:26]}  Bc1+ {[%clk 0:00:26]} 50. Ke2 {[%clk 0:00:27]}  Bb2 {[%clk 0:00:26]} 51. Bd8 {[%clk 0:00:25]}  Ba3 {[%clk 0:00:23]} 52. Ba5 {[%clk 0:00:17]}  Kd4 {[%clk 0:00:22]} 53. Kd2 {[%clk 0:00:15]}  e3+ {[%clk 0:00:19]} 54. Ke2 {[%clk 0:00:16]}  Bc1 {[%clk 0:00:17]} 55. Kd1 {[%clk 0:00:12]}  Bd2 {[%clk 0:00:16]} 56. Ke2 {[%clk 0:00:12]}  Bc1 {[%clk 0:00:12]} 57. Kd1 {[%clk 0:00:11]}  Ba3 {[%clk 0:00:08]} 58. Kc2 {[%clk 0:00:07]}  c5 {[%clk 0:00:04]} 59. b5 {[%clk 0:00:06]}  axb5 {[%clk 0:00:03]} 60. cxb5 {[%clk 0:00:07]}  c4 {[%clk 0:00:03]} 61. b6 {[%clk 0:00:06]}  cxb3+ {[%clk 0:00:02]} 62. Kxb3 {[%clk 0:00:06]}  Bd6 {[%clk 0:00:03]} 63. b7 {[%clk 0:00:07]}  e2 {[%clk 0:00:02]} 64. Kc2 {[%clk 0:00:06]}  Kc5 {[%clk 0:00:01]} 65. Kd3 {[%clk 0:00:04]}  Kc6 {[%clk 0:00:01]} 66. Be1 {[%clk 0:00:04]}  Kxb7 {[%clk 0:00:02]} 67. Kxe2 {[%clk 0:00:05]} 1/2-1/2


[Site "https://www.chess.com"]

[Event "Titled Tuesday Blitz February 22 Early 2022"]
[White "Vidit, Santosh Gujrathi"]
[Black "Jobava, Baadur"]
[WhiteFideId "5029465"]
[BlackFideId "13601520"]
[WhiteElo "2654"]
[BlackElo "2617"]
[Result "0-1"]
[Round "08"]
[TimeControl "180+1"]
[Date "2022.02.22"]
[WhiteClock "0:00:17"]
[BlackClock "0:00:08"]

1. d4 {[%clk 0:03:00]}  d5 {[%clk 0:02:59]} 2. c4 {[%clk 0:03:01]}  c6 {[%clk 0:02:59]} 3. Nf3 {[%clk 0:03:02]}  Nf6 {[%clk 0:02:59]} 4. Nc3 {[%clk 0:02:59]}  dxc4 {[%clk 0:03:00]} 5. a4 {[%clk 0:03:00]}  Bf5 {[%clk 0:02:56]} 6. Ne5 {[%clk 0:02:58]}  Nbd7 {[%clk 0:02:55]} 7. Nxc4 {[%clk 0:02:58]}  Qc7 {[%clk 0:02:56]} 8. g3 {[%clk 0:02:56]}  Rd8 {[%clk 0:02:56]} 9. Bf4 {[%clk 0:02:54]}  Qc8 {[%clk 0:02:56]} 10. Bg2 {[%clk 0:02:52]}  Nb6 {[%clk 0:02:54]} 11. Nxb6 {[%clk 0:02:43]}  axb6 {[%clk 0:02:54]} 12. O-O {[%clk 0:02:39]}  e6 {[%clk 0:02:48]} 13. e4 {[%clk 0:02:22]}  Bg4 {[%clk 0:02:48]} 14. Qd3 {[%clk 0:02:21]}  Bc5 {[%clk 0:02:40]} 15. Be5 {[%clk 0:01:59]}  Bxd4 {[%clk 0:02:26]} 16. Bxd4 {[%clk 0:02:00]}  e5 {[%clk 0:02:26]} 17. Nd5 {[%clk 0:01:59]}  exd4 {[%clk 0:02:26]} 18. Nxb6 {[%clk 0:01:57]}  Qc7 {[%clk 0:02:26]} 19. Nc4 {[%clk 0:01:55]}  O-O {[%clk 0:02:00]} 20. e5 {[%clk 0:01:55]}  Nd7 {[%clk 0:01:54]} 21. Qxd4 {[%clk 0:01:21]}  Be2 {[%clk 0:01:54]} 22. Rfe1 {[%clk 0:01:21]}  Bxc4 {[%clk 0:01:54]} 23. Qxc4 {[%clk 0:01:21]}  Nxe5 {[%clk 0:01:55]} 24. Qc3 {[%clk 0:01:18]}  Rfe8 {[%clk 0:01:40]} 25. b4 {[%clk 0:01:13]}  h5 {[%clk 0:01:09]} 26. b5 {[%clk 0:01:10]}  Re7 {[%clk 0:00:19]} 27. a5 {[%clk 0:00:59]}  Rde8 {[%clk 0:00:18]} 28. bxc6 {[%clk 0:00:52]}  bxc6 {[%clk 0:00:19]} 29. a6 {[%clk 0:00:50]}  Qa7 {[%clk 0:00:17]} 30. h3 {[%clk 0:00:47]}  h4 {[%clk 0:00:17]} 31. g4 {[%clk 0:00:45]}  Ng6 {[%clk 0:00:15]} 32. Rxe7 {[%clk 0:00:41]}  Rxe7 {[%clk 0:00:16]} 33. Qxc6 {[%clk 0:00:35]}  Qd4 {[%clk 0:00:16]} 34. Rf1 {[%clk 0:00:06]}  Nf4 {[%clk 0:00:16]} 35. Qc8+ {[%clk 0:00:03]}  Kh7 {[%clk 0:00:16]} 36. Qf5+ {[%clk 0:00:04]}  g6 {[%clk 0:00:16]} 37. Qg5 {[%clk 0:00:04]}  Ra7 {[%clk 0:00:13]} 38. Qxh4+ {[%clk 0:00:04]}  Kg7 {[%clk 0:00:14]} 39. Bb7 {[%clk 0:00:03]}  Rxb7 {[%clk 0:00:05]} 40. axb7 {[%clk 0:00:03]}  Qd5 {[%clk 0:00:04]} 41. f3 {[%clk 0:00:02]}  Qxb7 {[%clk 0:00:04]} 42. Qg3 {[%clk 0:00:02]}  Ne2+ {[%clk 0:00:04]} 43. Kg2 {[%clk 0:00:03]}  Nxg3 {[%clk 0:00:05]} 44. Kxg3 {[%clk 0:00:04]}  g5 {[%clk 0:00:06]} 45. Kg2 {[%clk 0:00:03]}  Kf6 {[%clk 0:00:06]} 46. Re1 {[%clk 0:00:03]}  Qb2+ {[%clk 0:00:06]} 47. Kg3 {[%clk 0:00:03]}  Qb8+ {[%clk 0:00:06]} 48. Kg2 {[%clk 0:00:03]}  Qb2+ {[%clk 0:00:05]} 49. Kg3 {[%clk 0:00:03]}  Qc3 {[%clk 0:00:06]} 50. Re4 {[%clk 0:00:04]}  Qc1 {[%clk 0:00:06]} 51. Kg2 {[%clk 0:00:04]}  Kg6 {[%clk 0:00:07]} 52. Re2 {[%clk 0:00:04]}  f5 {[%clk 0:00:05]} 53. gxf5+ {[%clk 0:00:05]}  Kxf5 {[%clk 0:00:06]} 54. Re4 {[%clk 0:00:05]}  Qd2+ {[%clk 0:00:06]} 55. Kg3 {[%clk 0:00:06]}  Qb2 {[%clk 0:00:06]} 56. h4 {[%clk 0:00:05]}  gxh4+ {[%clk 0:00:05]} 57. Rxh4 {[%clk 0:00:06]}  Qe5+ {[%clk 0:00:05]} 58. Kg2 {[%clk 0:00:06]}  Qe2+ {[%clk 0:00:05]} 59. Kg3 {[%clk 0:00:06]}  Qe1+ {[%clk 0:00:06]} 60. Kh3 {[%clk 0:00:07]}  Qf1+ {[%clk 0:00:04]} 61. Kg3 {[%clk 0:00:07]}  Qg1+ {[%clk 0:00:04]} 62. Kh3 {[%clk 0:00:08]}  Qf2 {[%clk 0:00:04]} 63. Rh5+ {[%clk 0:00:08]}  Kf4 {[%clk 0:00:04]} 64. Rh4+ {[%clk 0:00:09]}  Ke3 {[%clk 0:00:04]} 65. Re4+ {[%clk 0:00:09]}  Kd3 {[%clk 0:00:04]} 66. Kg4 {[%clk 0:00:09]}  Qg2+ {[%clk 0:00:04]} 67. Kf4 {[%clk 0:00:10]}  Qg7 {[%clk 0:00:04]} 68. Re3+ {[%clk 0:00:10]}  Kd4 {[%clk 0:00:05]} 69. Re4+ {[%clk 0:00:11]}  Kd5 {[%clk 0:00:05]} 70. Ke3 {[%clk 0:00:11]}  Qg3 {[%clk 0:00:04]} 71. Ke2 {[%clk 0:00:11]}  Qg2+ {[%clk 0:00:04]} 72. Ke3 {[%clk 0:00:12]}  Qh2 {[%clk 0:00:04]} 73. Rd4+ {[%clk 0:00:12]}  Ke5 {[%clk 0:00:04]} 74. Re4+ {[%clk 0:00:13]}  Kf5 {[%clk 0:00:05]} 75. Rg4 {[%clk 0:00:14]}  Qh1 {[%clk 0:00:04]} 76. Kf2 {[%clk 0:00:14]}  Qh2+ {[%clk 0:00:04]} 77. Rg2 {[%clk 0:00:14]}  Qh4+ {[%clk 0:00:04]} 78. Ke2 {[%clk 0:00:15]}  Qc4+ {[%clk 0:00:05]} 79. Kf2 {[%clk 0:00:15]}  Qc2+ {[%clk 0:00:05]} 80. Kg3 {[%clk 0:00:15]}  Qc1 {[%clk 0:00:05]} 81. Re2 {[%clk 0:00:14]}  Qg1+ {[%clk 0:00:04]} 82. Rg2 {[%clk 0:00:15]}  Qe1+ {[%clk 0:00:05]} 83. Rf2 {[%clk 0:00:15]}  Kg5 {[%clk 0:00:03]} 84. Kg2 {[%clk 0:00:15]}  Kf4 {[%clk 0:00:03]} 85. Rc2 {[%clk 0:00:15]}  Qb4 {[%clk 0:00:03]} 86. Re2 {[%clk 0:00:15]}  Qb7 {[%clk 0:00:03]} 87. Re4+ {[%clk 0:00:15]}  Kf5 {[%clk 0:00:04]} 88. Kg3 {[%clk 0:00:16]}  Qb2 {[%clk 0:00:04]} 89. Rf4+ {[%clk 0:00:16]}  Ke5 {[%clk 0:00:05]} 90. Re4+ {[%clk 0:00:17]}  Kd5 {[%clk 0:00:05]} 91. Rg4 {[%clk 0:00:17]}  Qe5+ {[%clk 0:00:05]} 92. Kf2 {[%clk 0:00:16]}  Qh2+ {[%clk 0:00:05]} 93. Ke3 {[%clk 0:00:17]}  Qh1 {[%clk 0:00:05]} 94. Rd4+ {[%clk 0:00:17]}  Kc5 {[%clk 0:00:05]} 95. Re4 {[%clk 0:00:18]}  Qe1+ {[%clk 0:00:05]} 96. Kf4 {[%clk 0:00:18]}  Qf2 {[%clk 0:00:06]} 97. Kg4 {[%clk 0:00:18]}  Kd5 {[%clk 0:00:06]} 98. Kf4 {[%clk 0:00:19]}  Qg1 {[%clk 0:00:07]} 99. Re5+ {[%clk 0:00:19]}  Kd4 {[%clk 0:00:07]} 100. Re4+ {[%clk 0:00:19]}  Kd3 {[%clk 0:00:07]} 101. Ke5 {[%clk 0:00:18]}  Qg5+ {[%clk 0:00:07]} 102. Ke6 {[%clk 0:00:18]}  Kd2 {[%clk 0:00:07]} 103. f4 {[%clk 0:00:17]}  Qg6+ {[%clk 0:00:08]} 104. Ke5 {[%clk 0:00:17]}  Qe8+ {[%clk 0:00:08]} 105. Kd4 {[%clk 0:00:17]}  Qd7+ {[%clk 0:00:08]} 106. Ke5 {[%clk 0:00:17]}  Kd3 {[%clk 0:00:08]} 0-1


[Site "https://www.chess.com"]

[Event "Titled Tuesday Blitz February 22 Early 2022"]
[White "Voege, Tobias"]
[Black "Pavlidou, Ekaterini"]
[WhiteFideId "1270513"]
[BlackFideId "4213262"]
[WhiteElo "2335"]
[BlackElo "2127"]
[Result "1-0"]
[Round "08"]
[TimeControl "180+1"]
[Date "2022.02.22"]
[WhiteClock "0:02:32"]
[BlackClock "0:02:16"]

1. d4 {[%clk 0:03:00]}  Nf6 {[%clk 0:02:53]} 2. c4 {[%clk 0:03:00]}  g6 {[%clk 0:02:53]} 3. Nc3 {[%clk 0:02:59]}  Bg7 {[%clk 0:02:54]} 4. Nf3 {[%clk 0:02:59]}  d6 {[%clk 0:02:54]} 5. Bg5 {[%clk 0:02:59]}  O-O {[%clk 0:02:54]} 6. e3 {[%clk 0:02:57]}  Nbd7 {[%clk 0:02:51]} 7. Be2 {[%clk 0:02:57]}  h6 {[%clk 0:02:51]} 8. Bh4 {[%clk 0:02:56]}  c6 {[%clk 0:02:51]} 9. O-O {[%clk 0:02:56]}  e5 {[%clk 0:02:51]} 10. a3 {[%clk 0:02:55]}  Re8 {[%clk 0:02:48]} 11. dxe5 {[%clk 0:02:52]}  dxe5 {[%clk 0:02:48]} 12. b4 {[%clk 0:02:51]}  Qc7 {[%clk 0:02:47]} 13. c5 {[%clk 0:02:51]}  Nf8 {[%clk 0:02:47]} 14. Nd2 {[%clk 0:02:50]}  Be6 {[%clk 0:02:42]} 15. Nc4 {[%clk 0:02:49]}  b6 {[%clk 0:02:37]} 16. Nd6 {[%clk 0:02:44]}  Red8 {[%clk 0:02:36]} 17. Qc2 {[%clk 0:02:43]}  bxc5 {[%clk 0:02:31]} 18. bxc5 {[%clk 0:02:44]}  N6d7 {[%clk 0:02:30]} 19. Bxd8 {[%clk 0:02:43]}  Rxd8 {[%clk 0:02:30]} 20. Na4 {[%clk 0:02:36]}  Qa5 {[%clk 0:02:17]} 21. Nb7 {[%clk 0:02:32]}  Qb5 {[%clk 0:02:16]} 1-0


[Site "https://www.chess.com"]

[Event "Titled Tuesday Blitz February 22 Early 2022"]
[White "Vusatiuk, Vladimir"]
[Black "Singh, Ojasva"]
[WhiteFideId "14118610"]
[BlackFideId "25681958"]
[WhiteElo "2157"]
[BlackElo "1741"]
[Result "1/2-1/2"]
[Round "08"]
[TimeControl "180+1"]
[Date "2022.02.22"]
[WhiteClock "0:00:30"]
[BlackClock "0:00:21"]

1. d4 {[%clk 0:03:00]}  d5 {[%clk 0:02:56]} 2. c4 {[%clk 0:03:00]}  c6 {[%clk 0:02:56]} 3. Nc3 {[%clk 0:02:59]}  Nf6 {[%clk 0:02:56]} 4. Nf3 {[%clk 0:03:00]}  e6 {[%clk 0:02:56]} 5. e3 {[%clk 0:02:56]}  Nbd7 {[%clk 0:02:55]} 6. Qc2 {[%clk 0:02:56]}  Bd6 {[%clk 0:02:54]} 7. Bd3 {[%clk 0:02:56]}  dxc4 {[%clk 0:02:54]} 8. Bxc4 {[%clk 0:02:55]}  O-O {[%clk 0:02:52]} 9. O-O {[%clk 0:02:54]}  Qe7 {[%clk 0:02:51]} 10. e4 {[%clk 0:02:53]}  e5 {[%clk 0:02:52]} 11. Bg5 {[%clk 0:02:48]}  exd4 {[%clk 0:02:49]} 12. Nxd4 {[%clk 0:02:48]}  Ne5 {[%clk 0:02:48]} 13. Bb3 {[%clk 0:02:44]}  h6 {[%clk 0:02:48]} 14. Bh4 {[%clk 0:02:43]}  Ng6 {[%clk 0:02:48]} 15. Bg3 {[%clk 0:02:41]}  Bxg3 {[%clk 0:02:45]} 16. hxg3 {[%clk 0:02:41]}  Qc5 {[%clk 0:02:37]} 17. Rad1 {[%clk 0:02:38]}  Bg4 {[%clk 0:02:32]} 18. f3 {[%clk 0:02:36]}  Rad8 {[%clk 0:02:26]} 19. Qf2 {[%clk 0:02:34]}  Bc8 {[%clk 0:02:24]} 20. Rfe1 {[%clk 0:02:17]}  Ne5 {[%clk 0:02:18]} 21. Na4 {[%clk 0:01:53]}  Qa5 {[%clk 0:02:14]} 22. Qd2 {[%clk 0:01:30]}  Qxd2 {[%clk 0:02:11]} 23. Rxd2 {[%clk 0:01:31]}  b5 {[%clk 0:02:09]} 24. Nc5 {[%clk 0:01:31]}  Nfd7 {[%clk 0:01:52]} 25. Nxd7 {[%clk 0:01:27]}  Rxd7 {[%clk 0:01:50]} 26. f4 {[%clk 0:01:18]}  Rfd8 {[%clk 0:01:25]} 27. fxe5 {[%clk 0:00:51]}  Rxd4 {[%clk 0:01:24]} 28. Rxd4 {[%clk 0:00:52]}  Rxd4 {[%clk 0:01:24]} 29. Rc1 {[%clk 0:00:53]}  Bd7 {[%clk 0:01:22]} 30. Rf1 {[%clk 0:00:48]}  Be6 {[%clk 0:00:59]} 31. Bxe6 {[%clk 0:00:48]}  fxe6 {[%clk 0:01:00]} 32. Rc1 {[%clk 0:00:48]}  Rxe4 {[%clk 0:00:59]} 33. Rxc6 {[%clk 0:00:48]}  Rxe5 {[%clk 0:00:59]} 34. Ra6 {[%clk 0:00:45]}  Re2 {[%clk 0:00:56]} 35. b3 {[%clk 0:00:42]}  e5 {[%clk 0:00:50]} 36. Rxa7 {[%clk 0:00:40]}  e4 {[%clk 0:00:50]} 37. Ra5 {[%clk 0:00:40]}  e3 {[%clk 0:00:32]} 38. Rxb5 {[%clk 0:00:41]}  Rxa2 {[%clk 0:00:32]} 39. Re5 {[%clk 0:00:40]}  e2 {[%clk 0:00:23]} 40. Kf2 {[%clk 0:00:39]}  Rb2 {[%clk 0:00:23]} 41. Re3 {[%clk 0:00:33]}  Kh7 {[%clk 0:00:23]} 42. Rxe2 {[%clk 0:00:30]}  Rxb3 {[%clk 0:00:22]} 43. Re4 {[%clk 0:00:30]}  Kg6 {[%clk 0:00:21]} 44. Rg4+ {[%clk 0:00:30]}  Kf6 {[%clk 0:00:21]} 1/2-1/2


[Site "https://www.chess.com"]

[Event "Titled Tuesday Blitz February 22 Early 2022"]
[White "Weishaeutel, Moritz"]
[Black "Mikhailovsky, Vladimir"]
[WhiteFideId "12967300"]
[BlackFideId "34105414"]
[WhiteElo "2002"]
[BlackElo "2371"]
[Result "1-0"]
[Round "08"]
[TimeControl "180+1"]
[Date "2022.02.22"]
[WhiteClock "0:00:20"]
[BlackClock "0:00:05"]

1. e4 {[%clk 0:03:00]}  Nf6 {[%clk 0:02:59]} 2. Nc3 {[%clk 0:03:00]}  d5 {[%clk 0:02:58]} 3. e5 {[%clk 0:02:55]}  Nfd7 {[%clk 0:02:58]} 4. e6 {[%clk 0:02:52]}  fxe6 {[%clk 0:02:58]} 5. d4 {[%clk 0:02:53]}  g6 {[%clk 0:02:55]} 6. h4 {[%clk 0:02:52]}  c5 {[%clk 0:02:55]} 7. h5 {[%clk 0:02:51]}  Bg7 {[%clk 0:02:53]} 8. hxg6 {[%clk 0:02:40]}  hxg6 {[%clk 0:02:54]} 9. Rxh8+ {[%clk 0:02:40]}  Bxh8 {[%clk 0:02:54]} 10. Qg4 {[%clk 0:02:37]}  Nf8 {[%clk 0:02:53]} 11. dxc5 {[%clk 0:02:29]}  e5 {[%clk 0:02:39]} 12. Qf3 {[%clk 0:02:20]}  Be6 {[%clk 0:02:31]} 13. Bh6 {[%clk 0:02:18]}  Bf6 {[%clk 0:02:29]} 14. O-O-O {[%clk 0:02:16]}  d4 {[%clk 0:01:39]} 15. Qxb7 {[%clk 0:02:08]}  Nbd7 {[%clk 0:01:21]} 16. Nb5 {[%clk 0:01:59]}  Rb8 {[%clk 0:01:11]} 17. Nc7+ {[%clk 0:01:40]}  Kf7 {[%clk 0:01:09]} 18. Nxe6 {[%clk 0:01:41]}  Nxe6 {[%clk 0:01:04]} 19. Qc6 {[%clk 0:01:40]}  Rc8 {[%clk 0:00:53]} 20. Qd5 {[%clk 0:01:22]}  Rxc5 {[%clk 0:00:49]} 21. Qb3 {[%clk 0:01:22]}  Nb6 {[%clk 0:00:21]} 22. Kb1 {[%clk 0:00:54]}  a5 {[%clk 0:00:21]} 23. a4 {[%clk 0:00:51]}  Qc7 {[%clk 0:00:18]} 24. Bd3 {[%clk 0:00:44]}  Nd5 {[%clk 0:00:16]} 25. Ne2 {[%clk 0:00:38]}  Qc6 {[%clk 0:00:09]} 26. Be4 {[%clk 0:00:34]}  Qd6 {[%clk 0:00:07]} 27. Qd3 {[%clk 0:00:20]}  Nf8 {[%clk 0:00:06]} 28. Bxf8 {[%clk 0:00:19]}  Kxf8 {[%clk 0:00:07]} 29. Bxg6 {[%clk 0:00:20]}  Nb4 {[%clk 0:00:06]} 30. Qb3 {[%clk 0:00:20]}  Bg5 {[%clk 0:00:05]} 31. Qf7# {[%clk 0:00:20]} 1-0


[Site "https://www.chess.com"]

[Event "Titled Tuesday Blitz February 22 Early 2022"]
[White "Zaksaite, Salomeja"]
[Black "Purtseladze, Maka"]
[WhiteFideId "12801496"]
[BlackFideId "13602659"]
[WhiteElo "2002"]
[BlackElo "2192"]
[Result "1-0"]
[Round "08"]
[TimeControl "180+1"]
[Date "2022.02.22"]
[WhiteClock "0:00:06"]
[BlackClock "0:00:17"]

1. e4 {[%clk 0:02:20]}  e6 {[%clk 0:02:57]} 2. d4 {[%clk 0:02:18]}  d5 {[%clk 0:02:57]} 3. Nc3 {[%clk 0:02:15]}  Nf6 {[%clk 0:02:53]} 4. e5 {[%clk 0:02:10]}  Nfd7 {[%clk 0:02:53]} 5. f4 {[%clk 0:02:09]}  c5 {[%clk 0:02:51]} 6. Nf3 {[%clk 0:02:06]}  Nc6 {[%clk 0:02:51]} 7. Be3 {[%clk 0:01:57]}  a6 {[%clk 0:02:49]} 8. Qd2 {[%clk 0:01:55]}  b5 {[%clk 0:02:49]} 9. a3 {[%clk 0:01:53]}  Bb7 {[%clk 0:02:43]} 10. Be2 {[%clk 0:01:52]}  cxd4 {[%clk 0:02:37]} 11. Nxd4 {[%clk 0:01:48]}  Nc5 {[%clk 0:02:38]} 12. O-O {[%clk 0:01:44]}  g6 {[%clk 0:02:36]} 13. Bf3 {[%clk 0:01:42]}  Be7 {[%clk 0:02:35]} 14. Rad1 {[%clk 0:01:21]}  Nxd4 {[%clk 0:02:11]} 15. Bxd4 {[%clk 0:01:19]}  O-O {[%clk 0:02:06]} 16. Qe3 {[%clk 0:01:17]}  Rc8 {[%clk 0:02:04]} 17. g4 {[%clk 0:01:00]}  Nd7 {[%clk 0:01:40]} 18. f5 {[%clk 0:00:58]}  Bg5 {[%clk 0:01:39]} 19. Qe2 {[%clk 0:00:47]}  exf5 {[%clk 0:01:30]} 20. gxf5 {[%clk 0:00:28]}  Re8 {[%clk 0:01:27]} 21. e6 {[%clk 0:00:15]}  fxe6 {[%clk 0:01:27]} 22. fxe6 {[%clk 0:00:14]}  Nf8 {[%clk 0:01:23]} 23. Bg4 {[%clk 0:00:14]}  Qd6 {[%clk 0:01:09]} 24. Be5 {[%clk 0:00:12]}  Qb6+ {[%clk 0:01:07]} 25. Bd4 {[%clk 0:00:12]}  Qd6 {[%clk 0:00:58]} 26. Qf3 {[%clk 0:00:12]}  Qf4 {[%clk 0:00:25]} 27. Qxf4 {[%clk 0:00:10]}  Bxf4 {[%clk 0:00:26]} 28. Rxf4 {[%clk 0:00:11]}  Nxe6 {[%clk 0:00:26]} 29. Bxe6+ {[%clk 0:00:08]}  Rxe6 {[%clk 0:00:26]} 30. Kf2 {[%clk 0:00:08]}  Rce8 {[%clk 0:00:24]} 31. Rf3 {[%clk 0:00:07]}  a5 {[%clk 0:00:19]} 32. Re3 {[%clk 0:00:07]}  b4 {[%clk 0:00:20]} 33. axb4 {[%clk 0:00:07]}  axb4 {[%clk 0:00:20]} 34. Rxe6 {[%clk 0:00:07]}  Rxe6 {[%clk 0:00:21]} 35. Ne2 {[%clk 0:00:07]}  Ba6 {[%clk 0:00:21]} 36. Rd2 {[%clk 0:00:06]}  Re4 {[%clk 0:00:20]} 37. Be3 {[%clk 0:00:06]}  Bb7 {[%clk 0:00:17]} 38. Rd4 {[%clk 0:00:06]}  Kf7 {[%clk 0:00:14]} 39. Rxe4 {[%clk 0:00:06]}  dxe4 {[%clk 0:00:15]} 40. Kg3 {[%clk 0:00:07]}  Kf6 {[%clk 0:00:14]} 41. h4 {[%clk 0:00:05]}  Ke5 {[%clk 0:00:12]} 42. Bc5 {[%clk 0:00:05]}  b3 {[%clk 0:00:11]} 43. cxb3 {[%clk 0:00:05]}  Ba6 {[%clk 0:00:11]} 44. Kf2 {[%clk 0:00:04]}  Kd5 {[%clk 0:00:11]} 45. Bf8 {[%clk 0:00:03]}  Ke5 {[%clk 0:00:10]} 46. Ke3 {[%clk 0:00:04]}  Kf5 {[%clk 0:00:10]} 47. b4 {[%clk 0:00:04]}  Kg4 {[%clk 0:00:10]} 48. Be7 {[%clk 0:00:04]}  h6 {[%clk 0:00:10]} 49. Nd4 {[%clk 0:00:04]}  g5 {[%clk 0:00:09]} 50. hxg5 {[%clk 0:00:04]}  hxg5 {[%clk 0:00:10]} 51. b5 {[%clk 0:00:04]}  Bb7 {[%clk 0:00:11]} 52. b6 {[%clk 0:00:04]}  Kh3 {[%clk 0:00:11]} 53. Bxg5 {[%clk 0:00:02]}  Kg4 {[%clk 0:00:12]} 54. Bf4 {[%clk 0:00:03]}  Kh5 {[%clk 0:00:12]} 55. Ne6 {[%clk 0:00:03]}  Kg6 {[%clk 0:00:13]} 56. Nc5 {[%clk 0:00:03]}  Bc6 {[%clk 0:00:13]} 57. b7 {[%clk 0:00:03]}  Bxb7 {[%clk 0:00:14]} 58. Nxb7 {[%clk 0:00:04]}  Kf5 {[%clk 0:00:15]} 59. Nc5 {[%clk 0:00:04]}  Kf6 {[%clk 0:00:14]} 60. b4 {[%clk 0:00:05]}  Ke7 {[%clk 0:00:15]} 61. b5 {[%clk 0:00:05]}  Kd8 {[%clk 0:00:16]} 62. b6 {[%clk 0:00:05]}  Kc8 {[%clk 0:00:17]} 63. b7+ {[%clk 0:00:06]} 1-0


[Site "https://www.chess.com"]